bitfinex/quotes_BTCUSD_20241206
["timestamp","ask_amount","ask_price","bid_price","bid_amount"]
[1733500177435,0.00079633,99604.0,99603.0,0.1288]
[1733500177633,0.00179633,99604.0,99603.0,0.1288]
[1733500177860,0.01115597,99604.0,99603.0,0.12897303]
[1733500178124,0.01215597,99604.0,99603.0,0.12897303]
[1733500179491,0.00179633,99604.0,99603.0,0.12897303]
[1733500180142,0.00279633,99604.0,99603.0,0.12897303]
[1733500181438,0.00279633,99604.0,99603.0,0.17897303]
[1733500182995,0.00179633,99604.0,99603.0,0.17897303]
[1733500183409,0.00079633,99604.0,99603.0,0.17897303]
[1733500183602,0.00179633,99604.0,99603.0,0.17897303]
[1733500183808,0.00179633,99604.0,99603.0,0.18497303]
[1733500184012,0.00079633,99604.0,99603.0,0.18497303]
[1733500184220,0.00079633,99604.0,99603.0,0.17897303]
[1733500184419,0.00079633,99604.0,99603.0,0.18097303]
[1733500185032,0.00079633,99604.0,99603.0,0.18297303]
[1733500185900,0.00079633,99604.0,99603.0,0.18097303]
[1733500186113,0.00079633,99604.0,99603.0,0.18697303]
[1733500186522,0.00079633,99604.0,99603.0,0.31600848]
[1733500186746,0.00079633,99604.0,99603.0,0.31500457]
[1733500189235,0.00079633,99604.0,99603.0,0.18697303]
[1733500189810,0.00079633,99604.0,99603.0,0.18662448]
[1733500190020,0.00079633,99604.0,99603.0,0.18398748]
[1733500190233,0.00079633,99604.0,99603.0,0.18498748]
[1733500190441,0.00079633,99604.0,99603.0,0.05117303]
[1733500190679,0.01014722,99604.0,99603.0,0.00017303]
[1733500191263,0.01014722,99604.0,99603.0,0.00417303]
[1733500191264,0.02880736,99604.0,99603.0,0.00417303]
[1733500191458,0.09152811,99604.0,99603.0,0.00417303]
[1733500191712,0.21150698,99604.0,99603.0,0.00417303]
[1733500191934,0.19284684,99604.0,99603.0,0.00417303]
[1733500192159,1.69284684,99604.0,99603.0,0.00417303]
[1733500192390,1.69284684,99604.0,99570.0,8.29691797]
[1733500192391,0.18251753,99571.0,99570.0,8.29691797]
[1733500192612,0.00935089,99571.0,99570.0,8.29691797]
[1733500192833,0.00935089,99571.0,99570.0,8.29709107]
[1733500193995,0.00935089,99571.0,99570.0,8.30009107]
[1733500194746,0.02202271,99571.0,99570.0,8.30009107]
[1733500194940,0.00935089,99571.0,99570.0,8.30009107]
[1733500195629,0.00935089,99571.0,99570.0,8.29709107]
[1733500195855,0.01235089,99571.0,99570.0,8.29709107]
[1733500196064,0.01035089,99571.0,99570.0,8.29709107]
[1733500196505,0.01335089,99571.0,99570.0,8.29709107]
[1733500196717,0.01035089,99571.0,99570.0,8.29709107]
[1733500197154,0.01435089,99571.0,99570.0,8.29709107]
[1733500197368,0.00935089,99571.0,99570.0,8.29709107]
[1733500198136,0.01035089,99571.0,99570.0,8.29709107]
[1733500198799,0.16538243,99571.0,99570.0,8.29709107]
[1733500199498,0.16638243,99571.0,99570.0,8.29709107]
[1733500199710,0.01035089,99571.0,99570.0,8.29709107]
[1733500199933,0.02638022,99571.0,99570.0,8.29709107]
[1733500200201,0.01043289,99571.0,99570.0,8.29709107]
[1733500200642,0.17941176,99571.0,99570.0,8.29709107]
[1733500200854,0.16446443,99571.0,99570.0,8.29709107]
[1733500201090,0.16746443,99571.0,99570.0,8.29709107]
[1733500201326,0.17301087,99571.0,99570.0,8.29709107]
[1733500201543,0.10803154,99571.0,99570.0,8.29709107]
[1733500201762,0.003,99571.0,99570.0,8.29709107]
[1733500202428,0.200858,99573.0,99570.0,8.29709107]
[1733500202683,0.001,99571.0,99570.0,8.29709107]
[1733500202894,0.004,99571.0,99570.0,8.29709107]
[1733500203126,0.001,99571.0,99570.0,8.29709107]
[1733500203804,0.201858,99573.0,99570.0,8.29709107]
[1733500204043,0.001,99571.0,99570.0,8.29709107]
[1733500204278,0.01198341,99577.0,99570.0,8.29709107]
[1733500204527,0.001,99571.0,99570.0,8.29709107]
[1733500205912,0.15603154,99571.0,99570.0,8.29709107]
[1733500206142,0.001,99571.0,99570.0,8.29709107]
[1733500206612,0.05,99581.0,99570.0,8.29709107]
[1733500206829,0.001,99571.0,99570.0,8.29709107]
[1733500207042,0.002,99571.0,99570.0,8.29709107]
[1733500207255,0.200852,99576.0,99570.0,8.37389107]
[1733500207471,0.200852,99576.0,99570.0,8.37789107]
[1733500208695,0.200852,99576.0,99570.0,8.37389107]
[1733500209105,0.200853,99575.0,99570.0,8.37489107]
[1733500209323,0.200853,99575.0,99570.0,8.37389107]
[1733500209527,0.0017328,99580.0,99570.0,8.37389107]
[1733500209528,0.001,99576.0,99570.0,8.37389107]
[1733500209764,0.002,99576.0,99570.0,8.37389107]
[1733500210250,0.002,99576.0,99575.0,0.05]
[1733500210251,0.001,99576.0,99575.0,0.05]
[1733500210472,0.001,99576.0,99575.0,0.25683154]
[1733500210699,0.001,99576.0,99575.0,0.30443154]
[1733500210940,0.0017328,99580.0,99579.0,0.1985]
[1733500211176,0.0017328,99580.0,99579.0,0.30353154]
[1733500212736,0.0027328,99580.0,99579.0,0.31153154]
[1733500214136,0.0027328,99580.0,99579.0,0.31453154]
[1733500214571,0.1846827,99601.0,99592.0,0.05]
[1733500214789,0.00935544,99600.0,99592.0,0.05]
[1733500215004,0.00935544,99599.0,99593.0,0.0250825]
[1733500215221,0.00935544,99598.0,99593.0,0.106]
[1733500215455,0.01496069,99603.0,99602.0,0.05]
[1733500215654,0.00935637,99603.0,99602.0,0.0976]
[1733500215891,0.00935637,99603.0,99602.0,0.1297402]
[1733500216312,0.00935637,99603.0,99602.0,0.1527402]
[1733500216780,0.0104142,99603.0,99602.0,0.2287402]
[1733500217035,0.0104142,99603.0,99602.0,0.33377174]
[1733500217036,0.00305783,99603.0,99602.0,0.33377174]
[1733500217536,0.00205783,99603.0,99602.0,0.34593078]
[1733500217737,0.00205783,99603.0,99602.0,0.36631378]
[1733500218411,0.00205783,99603.0,99602.0,0.33417358]
[1733500218628,0.00205783,99603.0,99590.0,0.0794]
[1733500218629,0.200799,99602.0,99590.0,0.0794]
[1733500218873,0.200839,99582.0,99581.0,0.0794]
[1733500219107,0.21019353,99582.0,99581.0,0.0794]
[1733500219379,0.00935453,99582.0,99581.0,0.0794]
[1733500220275,0.00935453,99582.0,99581.0,0.0834]
[1733500220506,0.00935453,99582.0,99581.0,0.0844]
[1733500220744,0.00935453,99582.0,99581.0,0.326161]
[1733500220979,0.00935453,99582.0,99581.0,0.376161]
[1733500221183,0.21578925,99590.0,99581.0,0.358241]
[1733500221390,0.00936371,99589.0,99582.0,0.023]
[1733500221598,0.21019071,99588.0,99585.0,0.05]
[1733500221806,0.00936371,99587.0,99585.0,0.05]
[1733500222013,0.200833,99585.0,99581.0,0.0794]
[1733500222229,0.00936371,99584.0,99581.0,0.1294]
[1733500222440,0.200837,99583.0,99581.0,0.1304]
[1733500222673,0.00936371,99584.0,99581.0,0.1294]
[1733500222886,0.200828,99588.0,99581.0,0.1294]
[1733500222887,0.00936371,99583.0,99581.0,0.1294]
[1733500223126,0.00936371,99582.0,99581.0,0.0794]
[1733500223330,0.00936371,99582.0,99581.0,0.1294]
[1733500223781,0.00936371,99582.0,99581.0,0.1334]
[1733500224646,0.200819,99592.0,99581.0,0.1334]
[1733500224899,0.00936441,99591.0,99581.0,0.1294]
[1733500225108,0.01496625,99596.0,99581.0,0.1294]
[1733500225109,0.00936441,99590.0,99585.0,0.05]
[1733500225323,0.00936441,99589.0,99585.0,0.05]
[1733500225533,0.20082,99592.0,99585.0,0.05]
[1733500225534,0.00936441,99588.0,99585.0,0.05]
[1733500225779,0.00936441,99587.0,99585.0,0.05]
[1733500225988,0.00936441,99586.0,99585.0,0.05]
[1733500226425,0.00936441,99586.0,99585.0,0.065575]
[1733500226631,0.00936441,99586.0,99585.0,0.064575]
[1733500226875,0.401656,99588.0,99585.0,0.064575]
[1733500227156,0.0093652,99587.0,99585.0,0.0789725]
[1733500227371,0.0093652,99586.0,99585.0,0.064575]
[1733500228266,0.0093652,99586.0,99585.0,0.066575]
[1733500228515,0.0093652,99586.0,99585.0,0.064575]
[1733500228766,0.0093652,99586.0,99585.0,0.067575]
[1733500229224,0.0093652,99586.0,99585.0,0.017575]
[1733500229686,0.16439674,99586.0,99585.0,0.017575]
[1733500229908,0.17938107,99586.0,99585.0,0.017575]
[1733500230154,0.22370361,99586.0,99585.0,0.017575]
[1733500230373,0.59138579,99586.0,99585.0,0.017575]
[1733500230592,0.40171,99574.0,99555.0,0.0826]
[1733500230801,0.40171,99574.0,99557.0,0.05]
[1733500230802,0.200859,99572.0,99557.0,0.05]
[1733500231036,0.0149914,99571.0,99557.0,0.05]
[1733500231677,0.200861,99571.0,99557.0,0.05]
[1733500232098,0.200861,99571.0,99570.0,8.30000886]
[1733500232341,0.21023062,99571.0,99570.0,8.30000886]
[1733500232589,0.21223062,99571.0,99570.0,8.30018196]
[1733500232829,0.21523062,99571.0,99570.0,8.30018196]
[1733500233261,0.202861,99571.0,99570.0,8.30018196]
[1733500233466,0.004,99571.0,99570.0,8.30018196]
[1733500233679,0.0133712,99571.0,99570.0,8.30018196]
[1733500238271,0.0093712,99571.0,99570.0,8.30018196]
[1733500238481,0.0113712,99571.0,99570.0,8.30018196]
[1733500238827,0.0133712,99571.0,99570.0,8.30018196]
[1733500240679,0.46926374,99571.0,99570.0,8.30018196]
[1733500240900,0.48425766,99571.0,99570.0,8.30018196]
[1733500241117,0.49625244,99571.0,99570.0,8.30018196]
[1733500241350,1.99625244,99571.0,99570.0,8.30018196]
[1733500241584,0.49425244,99571.0,99570.0,8.30018196]
[1733500241822,0.49225244,99571.0,99570.0,8.30018196]
[1733500242061,1.99425244,99571.0,99570.0,8.30018196]
[1733500242274,1.99525244,99571.0,99570.0,8.30018196]
[1733500242740,2.0039806,99571.0,99570.0,8.30018196]
[1733500242958,1.98361548,99571.0,99570.0,8.30018196]
[1733500243172,0.50597181,99571.0,99570.0,8.30018196]
[1733500243407,0.50397181,99571.0,99570.0,8.30018196]
[1733500243855,0.50597181,99571.0,99570.0,8.30018196]
[1733500244553,0.50697181,99571.0,99570.0,8.30018196]
[1733500245479,1.9919833,99571.0,99570.0,8.30018196]
[1733500246166,2.00697181,99571.0,99570.0,8.30018196]
[1733500247335,2.0119951,99571.0,99570.0,8.30018196]
[1733500247740,2.0619951,99571.0,99570.0,8.30018196]
[1733500249053,0.5619951,99571.0,99570.0,8.30018196]
[1733500249254,0.55697181,99571.0,99570.0,8.30018196]
[1733500249479,0.55700824,99571.0,99570.0,8.30018196]
[1733500249892,0.56203153,99571.0,99570.0,8.30018196]
[1733500251189,0.55700824,99571.0,99570.0,8.30018196]
[1733500251419,2.05900824,99571.0,99570.0,8.30018196]
[1733500251645,2.06583153,99571.0,99570.0,8.27757659]
[1733500251868,2.06583153,99571.0,99570.0,8.17714659]
[1733500252095,2.0508206,99571.0,99570.0,8.17714659]
[1733500252310,2.06649467,99571.0,99570.0,8.17841159]
[1733500252518,2.06449467,99571.0,99570.0,8.17841159]
[1733500252738,2.06651231,99571.0,99570.0,8.17941159]
[1733500252944,2.06651231,99571.0,99570.0,7.99587637]
[1733500253168,2.26139657,99571.0,99570.0,7.78733939]
[1733500253374,2.17140723,99571.0,99570.0,7.68690939]
[1733500253844,2.17140723,99571.0,99570.0,7.67638539]
[1733500254299,2.26134873,99571.0,99570.0,7.59604139]
[1733500254549,2.16840723,99571.0,99570.0,7.57495539]
[1733500254776,2.17340723,99571.0,99570.0,7.57595539]
[1733500254996,2.18240723,99571.0,99570.0,7.57032439]
[1733500255444,2.27232361,99571.0,99570.0,7.46989439]
[1733500255900,2.27191901,99571.0,99570.0,7.46989439]
[1733500256110,2.18200263,99571.0,99570.0,7.46989439]
[1733500256324,2.18200263,99571.0,99570.0,7.44980839]
[1733500256325,2.16673316,99571.0,99570.0,7.44980839]
[1733500256539,2.16673316,99571.0,99570.0,7.40963639]
[1733500256740,2.16673316,99571.0,99570.0,7.35875439]
[1733500257161,2.16673316,99571.0,99570.0,7.28736439]
[1733500257369,2.18186256,99571.0,99570.0,6.72150039]
[1733500257595,2.18186256,99571.0,99570.0,6.66793351]
[1733500258301,2.18186256,99571.0,99570.0,6.64784751]
[1733500258517,2.18186256,99571.0,99570.0,6.56750351]
[1733500259176,2.18186256,99571.0,99570.0,6.57008251]
[1733500259400,2.01003824,99571.0,99570.0,6.57008251]
[1733500260442,2.01003824,99571.0,99570.0,6.50982451]
[1733500260644,2.01003824,99571.0,99570.0,6.46965251]
[1733500261097,2.01003824,99571.0,99570.0,6.43156011]
[1733500261323,2.01003824,99571.0,99570.0,0.0881708]
[1733500261324,0.51003313,99571.0,99570.0,0.0881708]
[1733500261539,0.63047704,99571.0,99570.0,0.08507991]
[1733500261770,0.63047704,99571.0,99570.0,0.08381491]
[1733500261771,0.80534084,99571.0,99570.0,0.08381491]
[1733500262000,0.81036572,99571.0,99570.0,0.08381491]
[1733500262237,0.70354845,99571.0,99570.0,0.08181491]
[1733500262483,0.67314389,99571.0,99570.0,0.00100091]
[1733500262715,0.67814389,99571.0,99570.0,0.00200091]
[1733500262944,0.67963974,99571.0,99570.0,0.00100091]
[1733500263161,0.79353466,99571.0,99570.0,0.00200091]
[1733500263379,0.79353466,99571.0,99570.0,9.1e-07]
[1733500263627,0.52663974,99571.0,99570.0,9.1e-07]
[1733500263839,0.52613937,99571.0,99570.0,9.1e-07]
[1733500264059,0.53513937,99571.0,99570.0,0.00100091]
[1733500264352,0.52575696,99571.0,99570.0,0.00100091]
[1733500264554,0.51675696,99571.0,99570.0,9.1e-07]
[1733500264766,0.50175285,99571.0,99570.0,9.1e-07]
[1733500264973,0.67412076,99571.0,99570.0,0.001]
[1733500265176,0.67412076,99571.0,99570.0,0.0018663]
[1733500265388,0.77299045,99571.0,99570.0,0.0008663]
[1733500265644,0.76399045,99571.0,99570.0,0.0008663]
[1733500265870,0.77999045,99571.0,99570.0,0.0018663]
[1733500267664,0.77999045,99571.0,99570.0,3e-07]
[1733500267665,1.05562519,99571.0,99570.0,3e-07]
[1733500267882,1.06499953,99571.0,99570.0,3e-07]
[1733500268121,1.05562772,99571.0,99570.0,3e-07]
[1733500268559,0.98312936,99571.0,99570.0,3e-07]
[1733500269525,0.250922,99541.0,99540.0,0.0802003]
[1733500269753,0.36532788,99541.0,99540.0,0.0802003]
[1733500270669,0.36532788,99541.0,99540.0,0.08037357]
[1733500270939,0.36633192,99541.0,99540.0,0.08037357]
[1733500271384,0.37833625,99541.0,99540.0,0.08037357]
[1733500271617,0.38033625,99541.0,99540.0,0.08037357]
[1733500271825,0.38033625,99541.0,99540.0,0.00017327]
[1733500272085,0.78033625,99541.0,99540.0,2.7e-07]
[1733500272295,0.82058125,99541.0,99540.0,2.7e-07]
[1733500272531,0.81120287,99541.0,99540.0,2.7e-07]
[1733500272779,0.650982,99511.0,99510.0,0.0008652]
[1733500272996,0.94288167,99511.0,99510.0,0.0008652]
[1733500273238,0.94288167,99511.0,99510.0,2e-07]
[1733500273473,0.59189967,99511.0,99510.0,2e-07]
[1733500273705,0.34692711,99511.0,99510.0,2e-07]
[1733500273958,0.35629483,99511.0,99510.0,2e-07]
[1733500274201,0.35126739,99511.0,99510.0,2e-07]
[1733500275521,0.35626739,99511.0,99510.0,2e-07]
[1733500275986,0.36526739,99511.0,99510.0,2e-07]
[1733500276199,0.35626739,99511.0,99510.0,2e-07]
[1733500276645,0.50826739,99511.0,99510.0,0.0008665]
[1733500276894,0.50289967,99511.0,99510.0,0.0008665]
[1733500277396,0.49889967,99511.0,99510.0,0.0008665]
[1733500277605,0.60379459,99511.0,99510.0,0.0008665]
[1733500277822,0.60179459,99511.0,99510.0,0.0008665]
[1733500278278,0.60379459,99511.0,99510.0,0.0008665]
[1733500278538,0.60479459,99511.0,99510.0,0.0018665]
[1733500278957,0.61379459,99511.0,99510.0,0.0018665]
[1733500279875,0.50889967,99511.0,99510.0,0.0018665]
[1733500281151,0.35889967,99511.0,99510.0,0.0798665]
[1733500281388,0.36825409,99511.0,99510.0,0.0798665]
[1733500281847,0.35889967,99511.0,99510.0,0.0798665]
[1733500282051,0.34189967,99511.0,99510.0,0.0788665]
[1733500282503,0.35889967,99511.0,99510.0,0.0798665]
[1733500282731,0.34989967,99511.0,99510.0,0.0798665]
[1733500283157,0.35889967,99511.0,99510.0,0.0798665]
[1733500283868,0.36392681,99511.0,99510.0,0.0798665]
[1733500284099,0.35592681,99511.0,99510.0,0.0788665]
[1733500284538,0.36092681,99511.0,99510.0,0.0788665]
[1733500285023,0.35192681,99511.0,99510.0,0.0788665]
[1733500285257,0.36092681,99511.0,99510.0,0.0788665]
[1733500285498,0.46221459,99511.0,99510.0,0.0788665]
[1733500285701,0.36092681,99511.0,99510.0,0.0788665]
[1733500286364,0.51092681,99511.0,99510.0,0.0788665]
[1733500290267,0.510902,99511.0,99510.0,0.0788665]
[1733500292209,0.510902,99511.0,99510.0,0.0008665]
[1733500292630,0.760902,99511.0,99510.0,5e-07]
[1733500292868,0.651003,99501.0,99485.0,0.076]
[1733500293097,0.7730412,99501.0,99485.0,0.076]
[1733500293778,1.01801405,99501.0,99485.0,0.076]
[1733500294256,0.2,99481.0,99480.0,0.0017314]
[1733500294490,0.31701105,99481.0,99480.0,0.0017314]
[1733500295429,0.32501105,99481.0,99480.0,0.0027314]
[1733500295668,0.32558902,99481.0,99480.0,0.0027314]
[1733500296616,0.33458902,99481.0,99480.0,0.0027314]
[1733500296844,0.32558902,99481.0,99480.0,0.0027314]
[1733500297084,0.43948394,99481.0,99480.0,0.0027314]
[1733500297314,0.43148394,99481.0,99480.0,0.0017314]
[1733500297542,0.43448394,99481.0,99480.0,0.0017314]
[1733500297791,0.651063,99471.0,99470.0,5e-07]
[1733500298050,1.50772747,99471.0,99470.0,5e-07]
[1733500298296,0.651124,99441.0,99440.0,0.0008664]
[1733500298523,0.94299885,99441.0,99440.0,0.0008664]
[1733500299456,0.94299885,99441.0,99440.0,4e-07]
[1733500299691,0.94299885,99441.0,99399.0,0.075]
[1733500299692,0.201207,99400.0,99399.0,0.075]
[1733500299924,0.31821805,99400.0,99399.0,0.075]
[1733500300151,0.01197951,99400.0,99399.0,0.08466882]
[1733500300399,0.01197951,99400.0,99399.0,0.1341112]
[1733500300651,0.201188,99410.0,99401.0,0.0493294]
[1733500300867,0.15,99408.0,99399.0,0.0847818]
[1733500301100,0.17463652,99411.0,99402.0,0.00976269]
[1733500301101,0.15,99406.0,99402.0,0.00976269]
[1733500301332,0.15,99406.0,99399.0,0.075]
[1733500301333,0.05,99400.0,99399.0,0.075]
[1733500301575,0.32001105,99400.0,99399.0,0.075]
[1733500302029,0.31701105,99400.0,99399.0,0.075]
[1733500302455,0.31701105,99400.0,99398.0,0.0458]
[1733500302456,0.15,99394.0,99390.0,0.00190487]
[1733500302675,0.201225,99391.0,99390.0,0.00190487]
[1733500302885,0.46823605,99391.0,99390.0,0.00190487]
[1733500303095,0.31823605,99391.0,99390.0,0.00190487]
[1733500303338,0.55832395,99391.0,99390.0,0.00190487]
[1733500303560,0.57776497,99391.0,99390.0,0.00190487]
[1733500303984,0.47569756,99391.0,99390.0,0.00190487]
[1733500304202,0.48169756,99391.0,99390.0,0.00190487]
[1733500304458,0.53169756,99391.0,99390.0,0.00190487]
[1733500305173,0.53169756,99391.0,99390.0,8.7e-07]
[1733500305174,0.53236816,99391.0,99390.0,8.7e-07]
[1733500305387,0.52636816,99391.0,99390.0,8.7e-07]
[1733500305616,0.63926308,99391.0,99390.0,8.7e-07]
[1733500305874,0.64518702,99391.0,99390.0,8.7e-07]
[1733500306092,0.63718702,99391.0,99390.0,8.7e-07]
[1733500306300,0.64018702,99391.0,99390.0,8.7e-07]
[1733500306508,0.5352921,99391.0,99390.0,8.7e-07]
[1733500307149,0.7594853,99391.0,99390.0,8.7e-07]
[1733500307379,0.1333965,99391.0,99390.0,0.15260087]
[1733500307609,0.1214796,99391.0,99390.0,0.15260087]
[1733500307840,0.1284796,99391.0,99390.0,0.15260087]
[1733500308058,0.17103154,99391.0,99390.0,0.15260087]
[1733500308297,0.24676295,99391.0,99390.0,0.15260087]
[1733500308533,0.1124796,99391.0,99390.0,0.15260087]
[1733500308740,0.2764796,99391.0,99390.0,0.15260087]
[1733500308948,0.2674796,99391.0,99390.0,0.15260087]
[1733500309167,0.3124796,99391.0,99390.0,0.07020087]
[1733500309382,0.3124796,99391.0,99390.0,8.7e-07]
[1733500309383,0.3284796,99391.0,99390.0,8.7e-07]
[1733500309647,0.43141751,99391.0,99390.0,8.7e-07]
[1733500309883,0.44041751,99391.0,99390.0,8.7e-07]
[1733500310101,0.43141751,99391.0,99390.0,8.7e-07]
[1733500310319,0.43074691,99391.0,99390.0,8.7e-07]
[1733500310531,0.41883001,99391.0,99390.0,8.7e-07]
[1733500310746,0.31173125,99391.0,99390.0,8.7e-07]
[1733500310961,0.39224464,99391.0,99390.0,8.7e-07]
[1733500311437,0.39224464,99391.0,99370.0,0.001731]
[1733500311438,0.40252,99374.0,99371.0,0.023]
[1733500311675,0.25,99376.0,99320.0,0.203099]
[1733500311676,0.201347,99331.0,99323.0,0.0493294]
[1733500311948,0.251289,99360.0,99320.0,0.001732]
[1733500311949,0.201367,99321.0,99320.0,0.001732]
[1733500312138,0.23899008,99321.0,99320.0,0.00230912]
[1733500312392,0.50636992,99321.0,99320.0,0.00230912]
[1733500312632,0.48443221,99321.0,99320.0,0.00230912]
[1733500312867,0.59242381,99321.0,99320.0,0.00230912]
[1733500313085,0.67666649,99321.0,99320.0,0.00230912]
[1733500313310,0.63904341,99321.0,99320.0,0.00230912]
[1733500313526,0.61022872,99321.0,99320.0,0.00230912]
[1733500313766,0.61022872,99321.0,99320.0,0.00221438]
[1733500313767,0.77531544,99321.0,99320.0,0.00221438]
[1733500314464,0.72531544,99321.0,99320.0,0.00221438]
[1733500314686,0.25,99321.0,99320.0,0.00221438]
[1733500314904,0.259,99321.0,99320.0,0.00221438]
[1733500315135,0.016,99321.0,99320.0,0.03036876]
[1733500315364,0.007,99321.0,99320.0,0.10131438]
[1733500315605,0.009,99321.0,99320.0,0.15064378]
[1733500315874,0.007,99321.0,99320.0,0.15064378]
[1733500316330,0.016,99321.0,99320.0,0.16121177]
[1733500316543,0.007,99321.0,99320.0,0.16121177]
[1733500317186,0.15,99326.0,99321.0,0.023]
[1733500317401,0.15,99326.0,99321.0,0.0723294]
[1733500317647,0.15,99326.0,99323.0,0.023]
[1733500317856,0.15,99326.0,99325.0,0.023]
[1733500318305,0.153,99326.0,99325.0,0.03354864]
[1733500318791,0.158,99326.0,99325.0,0.03354864]
[1733500319018,0.15,99326.0,99325.0,0.03347329]
[1733500319250,0.161,99326.0,99325.0,0.03347329]
[1733500319677,0.011,99326.0,99325.0,0.03347329]
[1733500319897,0.011,99326.0,99325.0,0.08280269]
[1733500320130,0.003,99326.0,99325.0,0.08280269]
[1733500320366,0.1748638,99327.0,99326.0,0.0493294]
[1733500320580,0.251311,99349.0,99341.0,0.0493294]
[1733500320581,0.25,99349.0,99341.0,0.0493294]
[1733500320820,0.201318,99346.0,99341.0,0.0493294]
[1733500321030,0.201302,99353.0,99342.0,0.023]
[1733500321269,0.201302,99353.0,99341.0,0.0493294]
[1733500321270,0.201306,99351.0,99344.0,0.023]
[1733500321481,0.10503154,99351.0,99345.0,0.0493294]
[1733500321700,0.10503154,99351.0,99346.0,0.1002]
[1733500322151,0.10503154,99351.0,99346.0,0.1065251]
[1733500322335,0.006,99353.0,99346.0,0.1065251]
[1733500322564,0.402608,99352.0,99346.0,0.1065251]
[1733500322784,0.402608,99352.0,99346.0,0.1558545]
[1733500322785,0.15,99349.0,99346.0,0.1558545]
[1733500322992,0.201312,99348.0,99346.0,0.1495294]
[1733500323220,0.351312,99348.0,99347.0,0.00631123]
[1733500323429,0.351312,99348.0,99347.0,0.02931123]
[1733500323430,0.45634354,99348.0,99347.0,0.02931123]
[1733500323665,0.45634354,99348.0,99347.0,0.00631123]
[1733500323666,0.51821248,99348.0,99347.0,0.00631123]
[1733500323877,0.201347,99331.0,99330.0,0.0832]
[1733500324295,0.351347,99331.0,99330.0,0.08950423]
[1733500324943,0.53296743,99331.0,99330.0,0.08950423]
[1733500325176,0.54483637,99331.0,99330.0,0.08950423]
[1733500325422,0.47724748,99331.0,99330.0,0.0832]
[1733500325627,0.351367,99321.0,99320.0,0.00221438]
[1733500325869,0.46826748,99321.0,99320.0,0.00221438]
[1733500326946,0.46833461,99321.0,99320.0,0.02521438]
[1733500327197,0.01193607,99321.0,99320.0,0.00221438]
[1733500327416,0.01193607,99321.0,99320.0,0.08765816]
[1733500327627,0.01193607,99321.0,99320.0,0.08101202]
[1733500328045,0.201345,99332.0,99328.0,0.0493294]
[1733500328256,0.201345,99332.0,99320.0,0.03168262]
[1733500328257,0.201345,99332.0,99331.0,0.0493294]
[1733500328506,0.21330222,99332.0,99331.0,0.05578272]
[1733500328722,0.36330222,99332.0,99331.0,0.05578272]
[1733500329171,0.15,99331.0,99330.0,0.0493294]
[1733500329372,0.16195722,99331.0,99330.0,0.0493294]
[1733500329615,0.01195722,99331.0,99330.0,0.0723294]
[1733500330021,0.01195722,99331.0,99330.0,0.07878238]
[1733500330227,0.01195722,99331.0,99330.0,0.28013138]
[1733500330615,0.01195722,99331.0,99330.0,0.07878238]
[1733500330853,0.01195722,99331.0,99330.0,0.28013138]
[1733500331309,0.02595722,99331.0,99330.0,0.07878238]
[1733500331545,0.01695722,99331.0,99330.0,0.07878238]
[1733500331769,0.01195722,99331.0,99330.0,0.07878238]
[1733500331989,0.01395722,99331.0,99330.0,0.20168238]
[1733500332408,0.1748638,99347.0,99346.0,0.0493294]
[1733500332654,0.451283,99363.0,99346.0,0.1498294]
[1733500332878,0.201305,99352.0,99350.0,0.0493294]
[1733500333088,0.201305,99352.0,99351.0,0.0493294]
[1733500333303,0.201305,99352.0,99351.0,0.05575716]
[1733500333517,0.55633654,99352.0,99351.0,0.00642776]
[1733500333757,0.451305,99352.0,99351.0,0.00642776]
[1733500333984,0.451305,99352.0,99347.0,0.0493294]
[1733500333985,0.15,99351.0,99347.0,0.0493294]
[1733500334226,0.351307,99351.0,99347.0,0.0493294]
[1733500334457,0.351307,99351.0,99347.0,0.04990652]
[1733500335574,0.358307,99351.0,99347.0,0.04990652]
[1733500335807,0.007,99351.0,99347.0,0.04990652]
[1733500336286,0.001737,99350.0,99347.0,0.07290652]
[1733500336727,0.001737,99350.0,99348.0,0.201312]
[1733500336946,0.001737,99350.0,99349.0,0.12763335]
[1733500337154,0.0099982,99366.0,99349.0,0.12763335]
[1733500337155,0.0099982,99366.0,99365.0,0.0723294]
[1733500337396,0.0099982,99366.0,99365.0,0.3543074]
[1733500337606,0.17463652,99390.0,99368.0,0.0723294]
[1733500337811,0.201246,99381.0,99368.0,0.0723294]
[1733500338247,0.201256,99376.0,99368.0,0.0493294]
[1733500338881,0.15,99367.0,99365.0,0.0817]
[1733500339102,0.1748638,99369.0,99368.0,0.0493294]
[1733500339313,0.3298638,99369.0,99368.0,0.0493294]
[1733500339525,0.3248638,99369.0,99368.0,0.0493294]
[1733500340172,0.3248638,99369.0,99365.0,0.0807]
[1733500340173,0.3258638,99369.0,99365.0,0.0807]
[1733500340399,0.15,99367.0,99365.0,0.0807]
[1733500340615,0.45630754,99366.0,99365.0,0.0807]
[1733500341580,0.45630754,99366.0,99351.0,0.0832]
[1733500341792,0.201299,99355.0,99354.0,0.023]
[1733500342009,0.201299,99355.0,99351.0,0.0832]
[1733500342225,0.201291,99359.0,99354.0,0.00424847]
[1733500342450,0.201301,99354.0,99352.0,0.0493294]
[1733500342701,0.402602,99354.0,99351.0,0.0832]
[1733500342916,0.201301,99354.0,99353.0,0.0493294]
[1733500343155,0.201301,99354.0,99348.0,0.0493294]
[1733500343156,0.10503154,99354.0,99348.0,0.0493294]
[1733500343392,0.35131,99349.0,99348.0,0.0493294]
[1733500343612,0.10503154,99352.0,99349.0,0.00425088]
[1733500343837,0.25,99348.0,99347.0,0.00057712]
[1733500344053,0.26539624,99348.0,99347.0,0.00057712]
[1733500344527,0.37042778,99348.0,99347.0,0.00057712]
[1733500344960,0.37242778,99348.0,99347.0,0.00057712]
[1733500345400,0.37642778,99348.0,99347.0,0.00057712]
[1733500345624,0.52642778,99348.0,99347.0,0.00057712]
[1733500348601,0.02139624,99348.0,99347.0,0.04990652]
[1733500348859,0.006,99348.0,99347.0,0.20070652]
[1733500349075,0.006,99348.0,99347.0,0.20497664]
[1733500353390,0.006,99348.0,99347.0,0.15564724]
[1733500353619,0.26103154,99348.0,99347.0,0.02784724]
[1733500353851,0.156,99348.0,99347.0,0.07717664]
[1733500354083,0.156,99348.0,99347.0,0.07290652]
[1733500354307,0.156,99348.0,99347.0,0.07717233]
[1733500354756,0.006,99348.0,99347.0,0.07717233]
[1733500355264,0.006,99348.0,99347.0,0.07290652]
[1733500355485,0.006,99348.0,99347.0,0.04990652]
[1733500356128,0.006,99348.0,99347.0,0.02357712]
[1733500356343,0.006,99348.0,99347.0,0.07290652]
[1733500356622,0.006,99348.0,99347.0,0.00057712]
[1733500356837,0.26103154,99348.0,99347.0,0.02357712]